bitfinex/quotes_SOLUSD_20241210
["timestamp","ask_amount","ask_price","bid_price","bid_amount"]
[1733857350578,0.12549,209.51,209.45,23.776884]
[1733857350872,0.87309734,209.54,209.48,21.89278274]
[1733857351757,0.87309734,209.54,209.5,23.776884]
[1733857351962,0.87309734,209.54,209.53,43.776884]
[1733857352363,1.5693,209.66,209.54,23.776884]
[1733857352566,2.46381118,209.66,209.57,23.776884]
[1733857352751,1.5693,209.66,209.57,23.776884]
[1733857352949,1.5693,209.66,209.58,21.89278274]
[1733857353153,1.5693,209.66,209.59,23.776884]
[1733857353154,0.12549,209.65,209.59,23.776884]
[1733857353765,1.5693,209.66,209.59,23.776884]
[1733857353960,6.515,209.67,209.59,23.776884]
[1733857354160,0.8943206,209.7,209.6,35.53306747]
[1733857354368,0.25098,209.69,209.6,35.53306747]
[1733857354573,0.12549,209.67,209.6,35.53306747]
[1733857355691,6.515,209.72,209.62,35.53306747]
[1733857355852,6.515,209.77,209.64,35.53306747]
[1733857356053,0.89407005,209.76,209.66,35.53306747]
[1733857356283,0.89407005,209.76,209.67,23.776884]
[1733857356459,0.5908926,209.8,209.7,35.53306747]
[1733857356649,0.5908926,209.8,209.72,35.53306747]
[1733857356849,0.5908926,209.8,209.74,35.53306747]
[1733857357053,0.5908926,209.8,209.75,23.776884]
[1733857357267,0.5908926,209.8,209.76,35.53306747]
[1733857357466,0.5908926,209.8,209.77,23.776884]
[1733857357695,0.5908926,209.8,209.78,35.53306747]
[1733857357878,0.12549,209.79,209.74,35.53306747]
[1733857358081,0.5908926,209.8,209.72,35.53306747]
[1733857358392,0.25098,209.79,209.69,35.53306747]
[1733857358615,1.14499201,209.79,209.67,59.30995147]
[1733857358766,0.12549,209.79,209.7,23.776884]
[1733857358966,1.01935515,209.79,209.69,35.53306747]
[1733857359989,1.01935515,209.79,209.7,23.776884]
[1733857360192,0.5908926,209.8,209.72,23.776884]
[1733857360980,0.12549,209.79,209.72,23.776884]
[1733857361509,0.12549,209.79,209.73,35.53306747]
[1733857361798,0.5908926,209.8,209.79,23.776884]
[1733857362003,0.5908926,209.8,209.79,23.902374]
[1733857362217,10.0,209.96,209.8,0.12549]
[1733857362375,10.0,209.96,209.87,35.53306747]
[1733857362574,0.89321783,209.95,209.87,35.53306747]
[1733857362788,10.0,209.96,209.88,23.776884]
[1733857362997,0.89311616,209.95,209.88,23.776884]
[1733857363310,10.0,209.96,209.88,23.776884]
[1733857363537,0.89314344,209.95,209.88,23.776884]
[1733857363673,0.12549,209.95,209.88,23.776884]
[1733857364009,10.0,209.96,209.89,35.53306747]
[1733857364178,10.0,209.96,209.92,23.776884]
[1733857364380,10.0,209.96,209.93,35.53306747]
[1733857364582,10.0,209.96,209.95,35.53306747]
[1733857364885,10.0,209.96,209.95,59.30995147]
[1733857365193,10.0,209.96,209.93,35.53306747]
[1733857365397,10.0,209.96,209.92,23.776884]
[1733857365900,0.12549,209.99,209.92,23.776884]
[1733857366588,0.5908926,210.0,209.95,35.53306747]
[1733857367332,0.5908926,210.0,209.97,35.53306747]
[1733857367701,0.5908926,210.0,209.99,35.53306747]
[1733857367917,0.5908926,210.0,209.99,59.30995147]
[1733857368119,0.5908926,210.0,209.99,59.43544147]
[1733857368317,0.5908926,210.0,209.99,59.56093147]
[1733857368527,0.5908926,210.0,209.99,59.43544147]
[1733857368733,0.5908926,210.0,209.99,59.30995147]
[1733857369305,0.5908926,210.0,209.99,59.56093147]
[1733857369704,0.02985318,210.0,209.99,59.30995147]
[1733857370134,0.02985318,210.0,209.99,23.776884]
[1733857370336,0.02985318,210.0,209.98,23.776884]
[1733857370649,0.02985318,210.0,209.98,59.30995147]
[1733857371529,0.23318568,209.99,209.98,59.30995147]
[1733857371713,0.23318568,209.99,209.96,35.53306747]
[1733857371925,0.23318568,209.99,209.94,35.53306747]
[1733857372106,0.23318568,209.99,209.93,35.53306747]
[1733857372305,0.35867568,209.99,209.95,35.53306747]
[1733857372522,0.23318568,209.99,209.96,35.53306747]
[1733857372728,0.23318568,209.99,209.92,0.12549]
[1733857372729,0.23318568,209.99,209.98,35.53306747]
[1733857372929,0.23318568,209.99,209.98,35.65855747]
[1733857373101,0.23318568,209.99,209.93,0.58830265]
[1733857373431,0.23318568,209.99,209.98,23.776884]
[1733857373810,0.23318568,209.99,209.97,59.30995147]
[1733857374007,0.23318568,209.99,209.98,59.30995147]
[1733857374420,0.23318568,209.99,209.98,23.776884]
[1733857374846,0.23318568,209.99,209.98,59.30995147]
[1733857375001,0.23318568,209.99,209.98,23.776884]
[1733857375739,0.01197512,209.99,209.98,60.14930259]
[1733857375925,0.02985318,210.0,209.99,23.776884]
[1733857376533,0.02985318,210.0,209.99,60.14915005]
[1733857377302,0.02985318,210.0,209.99,72.50896684]
[1733857377910,0.02985318,210.0,209.99,48.56252471]
[1733857378506,0.02985318,210.0,209.99,23.94644213]
[1733857379306,0.02985318,210.0,209.99,24.65978965]
[1733857380107,0.02985318,210.0,209.99,48.56216365]
[1733857380305,0.02985318,210.0,209.99,47.72332613]
[1733857380511,0.02985318,210.0,209.99,47.84881613]
[1733857380724,0.02985318,210.0,209.97,23.94644213]
[1733857381333,0.02985318,210.0,209.97,38.94037864]
[1733857381633,0.02985318,210.0,209.92,0.58852017]
[1733857381634,0.02985318,210.0,209.99,38.94037864]
[1733857381931,0.02985318,210.0,209.99,101.90862128]
[1733857382345,0.02985318,210.0,209.99,62.96824264]
[1733857382552,0.02985318,210.0,209.99,63.55610411]
[1733857383150,0.02985318,210.0,209.97,38.94037864]
[1733857383741,0.02985318,210.0,209.99,38.94037864]
[1733857384273,0.02985318,210.0,209.99,39.06586864]
[1733857384655,6.1577,210.22,210.03,6.4717]
[1733857384843,6.1577,210.22,210.13,0.12549]
[1733857385168,6.1577,210.22,210.13,24.027864]
[1733857385338,6.1577,210.22,210.17,0.12549]
[1733857385538,9.06047869,210.27,210.14,38.94037864]
[1733857385751,9.06047869,210.27,210.0,172.0142]
[1733857385752,0.89193791,210.26,210.1,38.94037864]
[1733857385965,0.89193791,210.26,210.12,0.12549]
[1733857386651,0.89193791,210.26,210.14,0.12549]
[1733857386853,0.89193791,210.26,210.15,23.776884]
[1733857387771,0.89193791,210.26,210.16,39.06586864]
[1733857388479,0.89193384,210.27,210.18,0.12549]
[1733857388773,0.89193384,210.27,210.18,39.06586864]
[1733857388979,0.89193384,210.27,210.19,23.776884]
[1733857389676,0.89193384,210.27,210.18,0.12549]
[1733857389879,0.89193384,210.27,210.13,1.502]
[1733857389880,0.89193384,210.27,210.16,23.902374]
[1733857390084,20.0,210.26,210.16,23.902374]
[1733857390248,0.89191171,210.26,210.17,39.06586864]
[1733857390448,0.89187011,210.27,210.19,0.12549]
[1733857390843,1.5277,210.3,210.2,62.84275264]
[1733857391049,2.4194717,210.3,210.2,62.96824264]
[1733857391357,0.03050904,210.21,210.2,101.90862128]
[1733857392072,0.03050904,210.21,210.2,62.96824264]
[1733857392283,0.03050904,210.21,210.2,63.67968647]
[1733857392576,0.03050904,210.21,210.2,102.62006511]
[1733857392786,0.03050904,210.21,210.2,132.03411128]
[1733857392970,0.03050904,210.21,210.2,102.03411128]
[1733857393279,0.03050904,210.21,210.2,63.09373264]
[1733857393464,0.03050904,210.21,210.2,63.67964339]
[1733857393669,0.03050904,210.21,210.2,102.62002203]
[1733857393854,0.03050904,210.21,210.2,102.03411128]
[1733857394377,1.5277,210.36,210.2,102.03411128]
[1733857394378,6.1577,210.37,210.26,0.25098]
[1733857394675,6.1577,210.37,210.32,38.94037864]
[1733857394880,0.5908926,210.42,210.36,38.94037864]
[1733857395087,0.5908926,210.42,210.37,0.12549]
[1733857395373,0.5908926,210.42,210.4,23.902374]
[1733857395549,0.5908926,210.42,210.37,0.12549]
[1733857395746,0.5908926,210.42,210.37,62.84275264]
[1733857395976,0.5908926,210.42,210.39,38.94037864]
[1733857396976,0.5908926,210.42,210.37,62.84275264]
[1733857397284,0.5908926,210.42,210.38,39.06586864]
[1733857397781,0.5908926,210.42,210.41,0.12549]
[1733857397980,0.5908926,210.42,210.41,39.06586864]
[1733857398455,0.5908926,210.42,210.41,62.96824264]
[1733857398655,0.5908926,210.42,210.41,63.55292371]
[1733857399061,0.5908926,210.42,210.41,102.61879235]
[1733857399265,0.5908926,210.42,210.41,102.03411128]
[1733857399667,0.03091603,210.42,210.41,102.03411128]
[1733857400287,0.03091603,210.42,210.41,62.96824264]
[1733857400456,0.03091603,210.42,210.41,63.55236795]
[1733857401063,0.03091603,210.42,210.41,63.67785795]
[1733857401271,0.0016427,210.42,210.41,102.61823659]
[1733857401474,0.0016427,210.42,210.41,102.03411128]
[1733857401667,0.0016427,210.42,210.41,117.03411128]
[1733857401853,6.2348,210.6,210.45,0.25098]
[1733857402058,6.2348,210.6,210.44,30.0]
[1733857402059,6.2348,210.6,210.53,24.027864]
[1733857402364,6.2348,210.6,210.55,38.94037864]
[1733857402580,6.2348,210.6,210.54,0.25098]
[1733857403162,6.2348,210.6,210.53,38.94037864]
[1733857403373,6.2348,210.6,210.55,20.0]
[1733857403687,6.2348,210.6,210.53,38.94037864]
[1733857403885,6.2348,210.6,210.54,23.776884]
[1733857404093,0.5908926,210.63,210.54,23.776884]
[1733857404094,0.5908926,210.63,210.57,38.94037864]
[1733857404963,0.5908926,210.63,210.54,23.776884]
[1733857404964,0.5908926,210.63,210.61,38.94037864]
[1733857405388,0.5908926,210.63,210.6,38.94037864]
[1733857405588,0.5908926,210.63,210.59,39.06586864]
[1733857405961,0.5908926,210.63,210.6,38.94037864]
[1733857406492,0.5908926,210.63,210.61,38.94037864]
[1733857406693,0.5908926,210.63,210.62,63.55101395]
[1733857407779,0.5908926,210.63,210.62,147.61688259]
[1733857408090,6.5969,210.8,210.72,38.94037864]
[1733857408677,6.5969,210.8,210.74,38.94037864]
[1733857408996,6.5969,210.8,210.72,38.94037864]
[1733857409199,6.5969,210.8,210.73,38.94037864]
[1733857409760,6.5969,210.8,210.74,38.94037864]
[1733857409761,0.2163221,210.8,210.74,38.94037864]
[1733857410061,0.2163221,210.8,210.76,38.94037864]
[1733857410262,0.2163221,210.8,210.79,38.94037864]
[1733857410485,0.2163221,210.8,210.79,63.54945647]
[1733857410792,0.2163221,210.8,210.79,38.94037864]
[1733857410995,0.2163221,210.8,210.76,38.94037864]
[1733857411798,0.2163221,210.8,210.74,38.94037864]
[1733857412005,0.2163221,210.8,210.71,0.58153583]
[1733857412006,0.12549,210.79,210.71,38.94037864]
[1733857412693,0.12549,210.79,210.7,38.94037864]
[1733857412895,7.38208621,210.79,210.68,38.94037864]
[1733857413085,0.12549,210.77,210.66,38.94037864]
[1733857413285,0.12549,210.76,210.66,38.94037864]
[1733857413492,0.12549,210.76,210.57,32.81253922]
[1733857413493,0.12549,210.76,210.67,38.94037864]
[1733857413786,0.2163221,210.8,210.74,38.94037864]
[1733857414010,0.2163221,210.8,210.79,39.06586864]
[1733857414311,0.2163221,210.8,210.79,39.64689162]
[1733857414493,0.2163221,210.8,210.79,38.94037864]
[1733857415411,0.2163221,210.8,210.79,23.77293629]
[1733857415907,0.2163221,210.8,210.73,23.77293629]
[1733857416147,0.2163221,210.8,210.72,23.77293629]
[1733857416413,0.2163221,210.8,210.73,23.77293629]
[1733857417886,0.12549,210.79,210.69,23.77293629]
[1733857418111,0.12549,210.78,210.65,23.77293629]
[1733857418330,0.12549,210.78,210.63,23.77293629]
[1733857418331,20.12549,210.76,210.63,23.77293629]
[1733857418487,20.12549,210.76,210.61,23.77293629]
[1733857418488,20.0,210.72,210.61,23.77293629]
[1733857418694,20.0,210.72,210.63,23.77293629]
[1733857418695,1.01552845,210.71,210.63,23.77293629]
[1733857418888,1.01552845,210.71,210.61,23.77293629]
[1733857419402,1.01552845,210.71,210.54,34.34982567]
[1733857419403,0.12549,210.7,210.55,23.77293629]
[1733857419591,0.12549,210.7,210.57,23.77293629]
[1733857419592,1.01561717,210.7,210.57,23.77293629]
[1733857420241,1.01561717,210.7,210.55,23.77293629]
[1733857420845,20.12549,210.65,210.51,23.77293629]
[1733857421146,0.12549,210.69,210.5,0.58331465]
[1733857421147,20.12549,210.63,210.5,0.58331465]
[1733857421352,0.8904246,210.62,210.47,24.35647972]
[1733857421522,23.902374,210.61,210.47,0.58354343]
[1733857421853,0.12549,210.59,210.45,23.77293629]
[1733857422056,0.12549,210.58,210.43,23.77293629]
[1733857422357,20.0,210.54,210.39,24.35712253]
[1733857422648,20.0,210.54,210.42,23.77293629]
[1733857422949,1.76456953,210.53,210.42,23.77293629]
[1733857423151,0.87389014,210.52,210.42,23.77293629]
[1733857423330,0.87389014,210.52,210.41,38.76944512]
[1733857423739,0.89078744,210.51,210.4,38.76944512]
[1733857423923,0.87389014,210.5,210.38,38.76944512]
[1733857424124,0.89086089,210.49,210.38,38.76944512]
[1733857424425,0.89086089,210.49,210.36,38.76944512]
[1733857424426,1.76475103,210.49,210.36,38.76944512]
[1733857424653,1.76475103,210.49,210.35,38.76944512]
[1733857424821,20.12549,210.48,210.32,38.76944512]
[1733857425027,0.12549,210.45,210.31,38.76944512]
[1733857425243,0.89114252,210.48,210.35,38.76944512]
[1733857425444,0.87389014,210.49,210.4,38.76944512]
[1733857425622,0.87389014,210.49,210.45,38.76944512]
[1733857426025,0.87389014,210.49,210.41,39.35393274]
[1733857426730,0.87389014,210.49,210.39,38.76944512]
[1733857427052,0.87389014,210.49,210.46,38.76944512]
[1733857427358,30.0,210.91,210.45,0.12549]
[1733857427359,0.89050188,210.63,210.51,20.0]
[1733857427584,0.89050188,210.63,210.55,20.0]
[1733857427874,6.2867,210.69,210.59,38.76944512]
[1733857428080,0.89004157,210.67,210.56,0.58302259]
[1733857428451,0.89004157,210.67,210.56,39.35246771]
[1733857429151,0.89015726,210.66,210.56,0.58302259]
[1733857429466,0.89015726,210.66,210.51,38.76944512]
[1733857429467,0.12549,210.65,210.51,38.76944512]
[1733857429678,0.89031833,210.68,210.54,38.76944512]
[1733857429857,0.89031833,210.68,210.54,39.3527857]
[1733857430057,0.12549,210.67,210.53,38.76944512]
[1733857430786,0.43750703,210.66,210.54,0.583428]
[1733857430957,1.32771061,210.66,210.54,0.583428]
[1733857431797,0.12549,210.63,210.5,0.58349421]
[1733857431949,0.12549,210.63,210.39,15.0]
[1733857431950,0.12549,210.6,210.45,41.00607909]
[1733857432279,2.52084394,210.6,210.45,0.58393397]
[1733857432480,0.12549,210.58,210.43,38.76944512]
[1733857432682,1.016111,210.58,210.44,0.58418146]
[1733857432864,0.43750703,210.57,210.44,0.58418146]
[1733857433377,0.89062489,210.56,210.44,0.58418146]
[1733857433767,0.43750703,210.55,210.44,0.58418146]
[1733857434778,0.43750703,210.55,210.43,39.35381371]
[1733857434985,1.01614515,210.54,210.39,39.35369487]
[1733857435186,1.01614515,210.54,210.39,0.58424975]
[1733857435485,20.12549,210.52,210.36,0.58470291]
[1733857435674,0.8909514,210.51,210.36,39.35414803]
[1733857435877,0.8909514,210.51,210.34,38.76944512]
[1733857435878,20.0,210.48,210.34,38.76944512]
[1733857436052,20.0,210.48,210.29,31.6527]
[1733857436053,0.89109399,210.49,210.37,38.76944512]
[1733857436391,0.43750703,210.47,210.38,39.35410345]
[1733857436682,0.43750703,210.47,210.4,38.76944512]
[1733857436851,0.43750703,210.47,210.41,0.58449174]
[1733857437280,0.43750703,210.47,210.41,39.35393686]
[1733857438482,0.43750703,210.47,210.42,0.12549]
[1733857438664,0.43750703,210.47,210.43,39.35362463]
[1733857438856,0.43750703,210.47,210.45,38.76944512]
[1733857439052,0.43750703,210.47,210.46,0.83495942]
[1733857439271,0.43750703,210.47,210.46,0.58397942]
[1733857440785,0.43750703,210.47,210.46,0.83495942]
[1733857441200,0.43750703,210.47,210.46,24.61184342]
[1733857441760,0.02400259,210.47,210.46,26.6642561]
[1733857442078,2.59e-06,210.47,210.46,26.7897461]
[1733857442268,0.89034477,210.61,210.5,20.0]
[1733857442504,0.89034477,210.61,210.48,38.76944512]
[1733857442707,0.89034477,210.61,210.46,63.25579854]
[1733857443009,0.89034477,210.61,210.47,40.82563861]
[1733857443215,0.89034477,210.61,210.48,0.58387474]
[1733857443413,0.12549,210.6,210.45,38.76944512]
[1733857443593,0.12549,210.6,210.44,58.76944512]
[1733857443594,0.89062463,210.59,210.44,58.76944512]
[1733857443795,0.89062463,210.59,210.42,38.76944512]
[1733857443796,20.0,210.57,210.42,38.76944512]
[1733857443997,0.89071909,210.56,210.42,38.76944512]
[1733857444426,1.01620402,210.58,210.43,38.76944512]
[1733857444597,21.01620402,210.58,210.46,38.76944512]
[1733857445299,21.01620402,210.58,210.46,23.85090987]
[1733857445618,21.01620402,210.58,210.45,23.85090987]
[1733857445826,21.01620402,210.58,210.43,24.43503544]
[1733857446121,21.01620402,210.58,210.45,23.85090987]
[1733857446292,0.12549,210.56,210.45,23.85090987]
[1733857446496,0.12549,210.56,210.43,23.85090987]
[1733857446497,20.89060883,210.56,210.43,23.85090987]
[1733857446733,0.12549,210.53,210.4,0.58415712]
[1733857446905,6.0777,210.5,210.36,0.58438726]
[1733857447105,6.0777,210.5,210.35,23.85090987]
[1733857447106,0.89099345,210.49,210.35,23.85090987]
[1733857447508,0.89099345,210.49,210.34,23.85090987]
[1733857447800,23.902374,210.45,210.36,2.04675897]
[1733857448020,0.89127172,210.45,210.36,2.04675897]
[1733857448327,0.89104803,210.46,210.36,2.04675897]
[1733857448539,20.0,210.45,210.36,2.04675897]
[1733857448834,0.12549,210.41,210.36,2.04675897]
[1733857449005,1.01687036,210.41,210.36,2.04675897]
[1733857449649,15.0,210.47,210.36,2.04675897]
[1733857449804,0.89113641,210.46,210.36,2.04675897]
[1733857450620,1.01649645,210.45,210.36,2.04675897]
[1733857451209,0.12549,210.43,210.36,2.04675897]
[1733857451425,0.12549,210.41,210.36,2.04675897]
[1733857451610,21.01689941,210.41,210.36,2.04675897]
[1733857451921,36.01689941,210.41,210.36,2.04675897]
[1733857452123,20.89140941,210.41,210.36,2.04675897]
[1733857452323,20.0,210.44,210.36,2.04675897]
[1733857452530,0.89116855,210.43,210.33,23.85090987]
[1733857452731,0.89117213,210.43,210.34,24.43619357]
[1733857452905,0.89114202,210.47,210.33,23.85090987]
[1733857453108,0.89114202,210.47,210.27,12.7256035]
[1733857453109,15.12549,210.46,210.3,23.85090987]
[1733857453307,0.12549,210.44,210.31,23.85090987]
[1733857453502,0.89119199,210.45,210.33,23.85090987]
[1733857453744,0.89107953,210.49,210.33,23.85090987]
[1733857453938,0.12549,210.48,210.33,23.85090987]
[1733857454137,15.12549,210.46,210.3,23.97639987]
[1733857454428,15.12549,210.46,210.3,23.85090987]
[1733857454429,0.12549,210.44,210.3,23.85090987]
[1733857454639,0.89122966,210.45,210.31,24.43637336]
[1733857454934,20.0,210.44,210.32,23.85090987]
[1733857455103,20.0,210.44,210.28,23.85090987]
[1733857455104,20.0,210.4,210.28,23.85090987]
[1733857455308,0.89138683,210.39,210.27,23.85090987]
[1733857455636,0.89138683,210.39,210.26,24.43633016]
[1733857455943,20.89138683,210.39,210.26,24.43633016]
[1733857456506,20.89138683,210.39,210.28,23.85090987]
[1733857457642,20.89138683,210.39,210.26,24.43663589]
[1733857458737,0.12549,210.36,210.22,23.85090987]
[1733857458949,20.0,210.34,210.2,23.85090987]
[1733857459150,0.89166455,210.33,210.2,23.85090987]
[1733857459949,0.12549,210.34,210.2,23.85090987]
[1733857460147,0.89163976,210.33,210.21,0.12549]
[1733857460375,0.89150236,210.37,210.25,23.85090987]
[1733857460657,0.89151695,210.36,210.23,23.85090987]
[1733857460860,6.1247,210.38,210.23,23.85090987]
[1733857461044,7.01621955,210.38,210.27,23.85090987]
[1733857461264,0.89137644,210.37,210.27,23.85090987]
[1733857461452,0.89148579,210.36,210.27,23.85090987]
[1733857461648,0.89148579,210.36,210.25,23.85090987]
[1733857462339,0.89146106,210.37,210.25,23.85090987]
[1733857462546,0.89146305,210.36,210.25,23.85090987]
[1733857462777,6.1247,210.38,210.23,23.85090987]
[1733857462778,0.12549,210.37,210.23,23.85090987]
[1733857462984,20.0,210.35,210.21,23.85090987]
[1733857463152,20.0,210.35,210.17,23.85090987]
[1733857463153,20.0,210.31,210.17,23.85090987]
[1733857463341,0.89181746,210.3,210.17,23.85090987]
[1733857463672,0.12549,210.29,210.17,23.85090987]
[1733857463848,20.12549,210.29,210.17,23.85090987]
[1733857464046,20.12549,210.29,210.15,23.85090987]
[1733857464047,0.8918812,210.28,210.15,23.85090987]
[1733857464253,6.4282,210.26,210.15,23.85090987]
[1733857464457,0.89195137,210.25,210.15,23.85090987]
[1733857464650,0.89195137,210.25,210.14,23.85090987]
[1733857465267,0.89195137,210.25,210.15,23.85090987]
[1733857466562,0.89195137,210.25,210.14,23.85090987]
[1733857467278,0.89195137,210.25,210.14,23.97639987]
[1733857467579,0.89195137,210.25,210.13,24.43721709]
[1733857467760,0.89195137,210.25,210.09,23.85090987]
[1733857467761,20.0,210.23,210.09,23.85090987]
[1733857468076,0.89218354,210.22,210.09,23.85090987]
[1733857468449,0.89218354,210.22,210.08,23.85090987]
[1733857468653,20.0,210.21,210.08,23.85090987]
[1733857468856,0.89226378,210.2,210.06,24.44119827]
[1733857469058,20.0,210.19,210.07,2.0495248]
[1733857469268,1.5813,210.16,210.07,2.0495248]
[1733857469451,1.5813,210.16,210.06,0.5902884]
[1733857469452,20.0,210.14,210.06,0.5902884]
[1733857469772,0.12549,210.12,210.06,0.5902884]
[1733857470072,20.0,210.1,210.06,0.5902884]
[1733857470253,21.01818002,210.09,210.06,0.28525]
[1733857471282,20.89269002,210.09,210.06,0.28525]
[1733857471445,0.89273707,210.11,210.06,0.28525]
[1733857471645,0.89249215,210.13,210.06,0.28525]
[1733857471956,20.89249215,210.13,210.06,0.28525]
[1733857473294,0.12549,210.12,210.06,0.28525]
[1733857473486,0.89253772,210.11,210.06,0.28525]
[1733857473684,44.027864,210.1,210.06,0.28525]
[1733857473887,20.0,210.07,210.06,0.28525]
[1733857475685,43.902374,210.07,210.06,0.28525]
[1733857475918,20.12549,210.07,210.06,0.28525]
[1733857476494,20.0,210.07,210.06,0.28525]
[1733857476693,0.89277786,210.09,210.06,0.28525]
[1733857476920,20.89257264,210.13,210.06,0.28525]
[1733857477411,0.12549,210.12,210.06,0.28525]
[1733857477804,0.25098,210.1,210.06,0.28525]
[1733857477988,0.12549,210.08,210.06,0.28525]
[1733857478399,20.0,210.07,210.06,0.28525]
[1733857478712,20.89277414,210.07,210.06,0.28525]
[1733857479389,21.01826414,210.07,210.06,0.28525]
[1733857479906,20.12549,210.07,210.06,0.28525]
[1733857480505,0.89281861,210.09,210.06,0.28525]
[1733857481392,20.89281861,210.09,210.06,0.28525]
[1733857481593,24.027864,210.08,210.06,5e-05]
[1733857481814,24.92071388,210.07,210.06,5e-05]
[1733857482588,39.92071388,210.07,210.06,5e-05]
[1733857483686,24.92071388,210.07,210.06,5e-05]
[1733857484703,0.25098,210.06,210.0,0.6067538]
[1733857484910,20.25098,210.01,210.0,0.6067538]
[1733857485095,20.25098,210.01,210.0,5.38e-05]
[1733857485925,21.14409568,210.01,210.0,5.38e-05]
[1733857486319,59.92097968,210.01,210.0,5.38e-05]
[1733857486622,21.14409568,210.01,210.0,5.38e-05]
[1733857486918,0.893078,210.03,210.0,5.38e-05]
[1733857487119,0.89278972,210.1,210.0,5.38e-05]
[1733857487649,0.25098,210.09,210.0,5.38e-05]
[1733857487857,0.25098,210.07,210.0,5.38e-05]
[1733857488149,0.89283041,210.06,210.0,5.38e-05]
[1733857488449,0.89283093,210.09,210.0,5.38e-05]
[1733857489324,0.89283093,210.09,210.0,0.1255438]
[1733857489531,7.5942,210.17,210.01,23.85090987]
[1733857489743,7.5942,210.17,210.0,0.1255438]
[1733857489744,0.89248103,210.16,210.03,23.85090987]
[1733857489946,0.12549,210.14,210.03,23.85090987]
[1733857490111,0.12549,210.14,210.0,5.38e-05]
[1733857490112,1.01787895,210.14,210.01,23.85090987]
[1733857490317,0.12549,210.13,210.01,23.85090987]
[1733857490544,0.12549,210.13,210.0,5.38e-05]
[1733857490749,0.42553451,210.12,210.0,5.38e-05]
[1733857490927,1.01812699,210.11,210.0,5.38e-05]
[1733857491249,0.42553451,210.1,210.02,23.776884]
[1733857491423,0.42553451,210.1,210.03,23.85090987]
[1733857492119,0.42553451,210.1,210.07,23.85090987]
[1733857492518,0.42553451,210.1,210.05,43.85090987]
[1733857493851,0.42553451,210.1,210.07,23.85090987]
[1733857494145,0.42553451,210.1,210.05,43.85090987]
[1733857494339,0.42553451,210.1,210.06,20.0]
[1733857495161,0.42553451,210.1,210.06,20.58748163]
[1733857496272,0.42553451,210.1,210.06,20.0]
[1733857498164,0.42553451,210.1,210.05,23.85090987]
[1733857498366,0.42553451,210.1,210.01,23.85090987]
[1733857499067,0.12549,210.09,209.97,23.85090987]
[1733857499367,0.12549,210.07,209.96,7.9429]
[1733857499550,1.01820557,210.07,209.96,9.98741758]
[1733857499756,0.42553451,210.06,209.97,23.85090987]
[1733857500362,0.42553451,210.06,209.96,7.9429]
[1733857500551,0.42553451,210.06,209.97,23.85090987]
[1733857501074,0.42553451,210.06,210.01,23.85090987]
[1733857501252,0.42553451,210.06,209.98,0.12549]
[1733857501253,0.42553451,210.06,210.03,23.85090987]
[1733857501453,0.42553451,210.06,210.05,23.85090987]
[1733857502062,0.42553451,210.06,210.01,23.85090987]
[1733857502454,0.42553451,210.06,209.99,23.85090987]
[1733857502662,0.42553451,210.06,209.97,23.85090987]
[1733857503066,0.42553451,210.06,209.99,23.85090987]
[1733857503387,0.42553451,210.06,210.05,23.85090987]
[1733857503761,0.42553451,210.06,210.02,23.85090987]
[1733857504063,0.42553451,210.06,210.01,23.85090987]
[1733857504261,0.42553451,210.06,210.0,5.38e-05]
[1733857504783,0.42553451,210.06,210.0,23.85096367]
[1733857505266,0.42553451,210.06,210.01,23.85090987]
[1733857505472,0.42553451,210.06,210.02,23.85090987]
[1733857506954,0.42553451,210.06,210.03,23.85090987]
[1733857507184,0.42553451,210.06,210.05,47.62779387]
[1733857508056,0.42553451,210.06,210.05,23.85090987]
[1733857508383,0.42553451,210.06,210.03,23.85090987]
[1733857508680,0.42553451,210.06,210.04,23.85090987]
[1733857509679,0.42553451,210.06,210.05,23.902374]
[1733857510275,0.42553451,210.06,210.04,24.43873316]
[1733857510763,0.42553451,210.06,210.04,23.85090987]
[1733857511367,0.42553451,210.06,210.0,23.85096367]
[1733857511582,0.42553451,210.06,210.0,5.38e-05]
[1733857512162,0.42553451,210.06,210.0,23.85096367]
[1733857512387,0.42553451,210.06,210.04,23.85090987]
[1733857512999,0.42553451,210.06,210.05,1.99905756]
[1733857513171,0.42553451,210.06,210.05,23.902374]
[1733857513571,0.42553451,210.06,210.05,23.776884]
[1733857513795,0.42553451,210.06,210.05,47.62779387]
[1733857513980,0.42553451,210.06,210.05,49.62983692]
[1733857514174,0.42553451,210.06,210.05,47.62779387]
[1733857514483,0.42553451,210.06,210.05,23.85090987]
[1733857514686,0.42553451,210.06,210.05,10.81580338]
[1733857515482,0.42553451,210.06,210.03,23.85090987]
[1733857515984,0.42553451,210.06,210.05,23.85090987]
[1733857516363,0.42553451,210.06,210.0,5.38e-05]